lending/lending_fUSD_20250913
["ID","MTS","AMOUNT","RATE_DAILY","PERIOD"]
[385356889,1757790773087,-743.92,0.00030136,2]
[385356890,1757790773096,-549.77,0.00030136,2]
[385356891,1757790773105,-400.0,0.00030136,2]
[385356892,1757790773115,-400.0,0.00030136,2]
[385356893,1757790773124,-867.52,0.00030136,2]
[385356894,1757790773133,-757.51,0.00030136,2]
[385356895,1757790773142,-400.0,0.00030136,2]
[385356896,1757790773151,-1369.33,0.00030136,2]
[385356897,1757790773160,-976.5,0.00030136,2]
[385356898,1757790773170,-714.21,0.00030136,2]
[385356899,1757790773179,-1200.51,0.00030136,2]
[385356900,1757790773188,-429.54,0.00030136,2]
[385356901,1757790773197,-931.9,0.00030136,2]
[385356902,1757790773206,-767.06,0.00030136,2]
[385356903,1757790773216,-522.36,0.00030136,2]
[385356904,1757790773225,-464.29,0.00030136,2]
[385356905,1757790773234,-400.0,0.00030136,2]
[385356906,1757790773243,-1050.24,0.00030136,2]
[385356907,1757790773252,-400.0,0.00030136,2]
[385356908,1757790773261,-712.0,0.00030136,2]
[385356909,1757790773271,-770.1,0.00030136,2]
[385356910,1757790773280,-1340.61,0.00030136,2]
[385356911,1757790773289,-503.78,0.00030136,2]
[385356912,1757790773298,-744.56,0.00030136,2]
[385356913,1757790773308,-933.78,0.00030136,2]
[385356914,1757790773317,-917.05,0.00030136,2]
[385356915,1757790773326,-601.03,0.00030136,2]
[385356916,1757790773335,-1166.06,0.00030136,2]
[385356917,1757790773344,-408.67,0.00030136,2]
[385356918,1757790773354,-489.60457021,0.00030136,2]
[385356919,1757790773363,-744.95,0.00030136,2]
[385356920,1757790773373,-962.63,0.00030136,2]
[385356921,1757790773382,-944.97,0.00030136,2]
[385356922,1757790773391,-697.23,0.00030136,2]
[385356923,1757790773400,-1128.5,0.00030136,2]
[385356924,1757790773410,-1287.15,0.00030136,2]
[385356925,1757790773419,-400.0,0.00030136,2]
[385356926,1757790773429,-1140.31,0.00030136,2]
[385356927,1757790773439,-1121.16,0.00030136,2]
[385356928,1757790773448,-883.84,0.00030136,2]
[385356929,1757790773458,-400.0,0.00030136,2]
[385356930,1757790773467,-400.0,0.00030136,2]
[385356931,1757790773477,-509.41132357,0.00030136,2]
[385356932,1757790773489,-400.0,0.00030136,2]
[385356933,1757790773499,-513.88,0.00030136,2]
[385356934,1757790773508,-766.79,0.00030136,2]
[385356935,1757790773517,-836.28,0.00030136,2]
[385356936,1757790773527,-400.0,0.00030136,2]
[385356937,1757790773537,-1062.97,0.00030136,2]
[385356938,1757790773546,-462.79552698,0.00030136,2]
[385356939,1757790773556,-701.46,0.00030136,2]
[385356940,1757790773567,-400.0,0.00030136,2]
[385356941,1757790773576,-400.0,0.00030136,2]
[385356942,1757790773585,-1010.43,0.00030136,2]
[385356943,1757790773595,-618.9,0.00030136,2]
[385356944,1757790773604,-740.73,0.00030136,2]
[385356945,1757790773613,-400.0,0.00030136,2]
[385356946,1757790773622,-617.0,0.00030136,2]
[385356947,1757790773632,-955.87,0.00030136,2]
[385356948,1757790773641,-400.0,0.00030136,2]
[385356949,1757790773651,-1394.15,0.00030136,2]
[385356950,1757790773660,-645.46,0.00030136,2]
[385356951,1757790773669,-475.16,0.00030136,2]
[385356952,1757790773678,-400.0,0.00030136,2]
[385356953,1757790773688,-400.0,0.00030136,2]
[385356954,1757790773697,-1201.25,0.00030136,2]
[385356955,1757790773707,-1420.48,0.00030136,2]
[385356956,1757790773715,-436.7,0.00030136,2]
[385356957,1757790773724,-400.0,0.00030136,2]
[385356958,1757790773734,-886.97,0.00030136,2]
[385356959,1757790773743,-695.44,0.00030136,2]
[385356960,1757790773752,-869.21,0.00030136,2]
[385356961,1757790773761,-1459.76,0.00030136,2]
[385356962,1757790773770,-563.58,0.00030136,2]
[385356963,1757790773780,-400.0,0.00030136,2]
[385356964,1757790773789,-565.26,0.00030136,2]
[385356965,1757790773798,-1134.89,0.00030136,2]
[385356966,1757790773808,-404.56,0.00030136,2]
[385356967,1757790773817,-734.93,0.00030136,2]
[385356968,1757790773826,-1149.23,0.00030136,2]
[385356969,1757790773835,-400.0,0.00030136,2]
[385356970,1757790773844,-1190.66,0.00030136,2]
[385356971,1757790773854,-656.39,0.00030136,2]
[385356972,1757790773863,-1130.2,0.00030136,2]
[385356973,1757790773872,-390.54585551,0.00030136,2]
[385356974,1757790773881,-914.37,0.00030136,2]
[385356975,1757790773891,-869.45,0.00030136,2]
[385356976,1757790773900,-400.0,0.00030136,2]
[385356977,1757790773909,-459.11,0.00030136,2]
[385356978,1757790773919,-1022.06,0.00030136,2]
[385356979,1757790773928,-400.0,0.00030136,2]
[385356980,1757790773938,-400.0,0.00030136,2]
[385356981,1757790773947,-516.71,0.00030136,2]
[385356982,1757790773957,-400.0,0.00030136,2]
[385356983,1757790773967,-400.0,0.00030136,2]
[385356984,1757790773976,-400.0,0.00030136,2]
[385356985,1757790773985,-1379.73,0.00030136,2]
[385356986,1757790773995,-899.94,0.00030136,2]
[385356987,1757790774005,-866.46,0.00030136,2]
[385356988,1757790774015,-400.0,0.00030136,2]
[385356989,1757790774024,-556.4,0.00030136,2]
[385356990,1757790774033,-400.0,0.00030136,2]
[385356991,1757790774042,-1195.99,0.00030136,2]
[385356992,1757790774051,-518.54,0.00030136,2]
[385356993,1757790774060,-1740.08,0.00030136,2]
[385356994,1757790774069,-1006.76,0.00030136,2]
[385356995,1757790774078,-400.0,0.00030136,2]
[385356996,1757790774087,-400.0,0.00030136,2]
[385356997,1757790774190,-400.0,0.00030136,2]
[385356998,1757790774230,-668.89,0.00030136,2]
[385356999,1757790774239,-529.54,0.00030136,2]
[385357000,1757790774248,-449.32468235,0.00030136,2]
[385357001,1757790774258,-927.44,0.00030136,2]
[385357002,1757790774267,-662.77,0.00030136,2]
[385357003,1757790774276,-400.0,0.00030136,2]
[385357004,1757790774286,-415.82894292,0.00030136,2]
[385357005,1757790774295,-586.65,0.00030136,2]
[385357006,1757790774304,-744.19,0.00030136,2]
[385357007,1757790774314,-899.11,0.00030136,2]
[385357008,1757790774323,-770.78,0.00030136,2]
[385357009,1757790774333,-644.35,0.00030136,2]
[385357010,1757790774343,-714.15,0.00030136,2]
[385357011,1757790774353,-453.23,0.00030136,2]
[385357012,1757790774363,-1002.56,0.00030136,2]
[385357013,1757790774372,-809.12,0.00030136,2]
[385357014,1757790774382,-400.0,0.00030136,2]
[385357015,1757790774391,-400.0,0.00030136,2]
[385357016,1757790774401,-400.0,0.00030136,2]
[385357017,1757790774411,-400.0,0.00030136,2]
[385357018,1757790774420,-864.64,0.00030136,2]
[385357019,1757790774429,-400.0,0.00030136,2]
[385357020,1757790774439,-836.53,0.00030136,2]
[385357021,1757790774448,-400.0,0.00030136,2]
[385357022,1757790774457,-400.0,0.00030136,2]
[385357023,1757790774466,-400.0,0.00030136,2]
[385357024,1757790774475,-400.0,0.00030136,2]
[385357025,1757790774487,-800.39,0.00030136,2]
[385357026,1757790774497,-759.84,0.00030136,2]
[385357027,1757790774506,-400.0,0.00030136,2]
[385357028,1757790774516,-438.06,0.00030136,2]
[385357029,1757790774525,-1067.29,0.00030136,2]
[385357030,1757790774534,-483.11,0.00030136,2]
[385357031,1757790774543,-890.46,0.00030136,2]
[385357032,1757790774552,-621.88,0.00030136,2]
[385357033,1757790774561,-2863.78,0.00030136,2]
[385357034,1757790774571,-440.32,0.00030136,2]
[385357035,1757790774579,-400.0,0.00030136,2]
[385357036,1757790774588,-1123.98,0.00030136,2]
[385357037,1757790774598,-757.94,0.00030136,2]
[385357038,1757790774607,-400.0,0.00030136,2]
[385357039,1757790774616,-557.63,0.00030136,2]
[385357040,1757790774626,-861.65,0.00030136,2]
[385357041,1757790774636,-803.76,0.00030136,2]
[385357042,1757790774646,-835.94,0.00030136,2]
[385357043,1757790774656,-434.25,0.00030136,2]
[385357044,1757790774666,-400.0,0.00030136,2]
[385357045,1757790774675,-578.44,0.00030136,2]
[385357046,1757790774684,-550.07,0.00030136,2]
[385357047,1757790774694,-800.87,0.00030136,2]
[385357048,1757790774703,-541.06,0.00030136,2]
[385357049,1757790774713,-400.0,0.00030136,2]
[385357050,1757790774722,-400.0,0.00030136,2]
[385357051,1757790774731,-652.82,0.00030136,2]
[385357052,1757790774740,-400.0,0.00030136,2]
[385357053,1757790774749,-423.72,0.00030136,2]
[385357054,1757790774759,-400.0,0.00030136,2]
[385357055,1757790774768,-1300.44,0.00030136,2]
[385357056,1757790774778,-371.52274159,0.00030136,2]
[385357057,1757790774788,-400.0,0.00030136,2]
[385357058,1757790774797,-439.16,0.00030136,2]
[385357059,1757790774807,-400.0,0.00030136,2]
[385357060,1757790774816,-826.3,0.00030136,2]
[385357061,1757790774826,-787.45,0.00030136,2]
[385357062,1757790774835,-535.57,0.00030136,2]
[385357063,1757790774845,-800.47,0.00030136,2]
[385357064,1757790774854,-1253.6,0.00030136,2]
[385357065,1757790774864,-264.49,0.00030136,2]
[385357066,1757790774874,-544.69,0.00030136,2]
[385357067,1757790774884,-400.0,0.00030136,2]
[385357068,1757790774893,-400.0,0.00030136,2]
[385357069,1757790774902,-842.01,0.00030136,2]
[385357070,1757790774911,-944.98,0.00030136,2]
[385357071,1757790774921,-1082.49,0.00030136,2]
[385357072,1757790774931,-556.97,0.00030136,2]
[385357073,1757790774940,-652.8,0.00030136,2]
[385357074,1757790774949,-489.49,0.00030136,2]
[385357075,1757790774959,-400.0,0.00030136,2]
[385357076,1757790774968,-400.0,0.00030136,2]
[385357077,1757790774978,-400.0,0.00030136,2]
[385357078,1757790774987,-400.0,0.00030136,2]
[385357079,1757790774996,-439.06,0.00030136,2]
[385357080,1757790775006,-890.6,0.00030136,2]
[385357081,1757790775016,-589.14,0.00030136,2]
[385357082,1757790775026,-583.29,0.00030136,2]
[385357083,1757790775036,-708.58,0.00030136,2]
[385357084,1757790775045,-400.0,0.00030136,2]
[385357085,1757790775055,-531.52,0.00030136,2]
[385357086,1757790775064,-400.0,0.00030136,2]
[385357087,1757790775074,-1252.15,0.00030136,2]
[385357088,1757790775083,-350.87451634,0.00030136,2]
[385357089,1757790775092,-947.61,0.00030136,2]
[385357090,1757790775102,-400.0,0.00030136,2]
[385357091,1757790775111,-1050.56,0.00030136,2]
[385357092,1757790775122,-400.0,0.00030136,2]
[385357093,1757790775133,-400.0,0.00030136,2]
[385357094,1757790775143,-400.0,0.00030136,2]
[385357095,1757790775154,-872.42,0.00030136,2]
[385357096,1757790775165,-400.0,0.00030136,2]
[385357097,1757790775176,-791.71,0.00030136,2]
[385357098,1757790775186,-407.96,0.00030136,2]
[385357099,1757790775197,-400.0,0.00030136,2]
[385357100,1757790775207,-400.0,0.00030136,2]
[385357101,1757790775216,-983.81,0.00030136,2]
[385357102,1757790775226,-2593.64,0.00030136,2]
[385357103,1757790775236,-868.8,0.00030136,2]
[385357104,1757790775246,-846.53,0.00030136,2]
[385357105,1757790775256,-730.89,0.00030136,2]
[385357106,1757790775266,-400.0,0.00030136,2]
[385357107,1757790775275,-400.0,0.00030136,2]
[385357108,1757790775286,-785.21,0.00030136,2]
[385357109,1757790775296,-448.41949886,0.00030136,2]
[385357110,1757790775305,-400.0,0.00030136,2]
[385357111,1757790775315,-400.0,0.00030136,2]
[385357112,1757790775325,-447.29,0.00030136,2]
[385357113,1757790775334,-964.92,0.00030136,2]
[385357114,1757790775343,-400.0,0.00030136,2]
[385357115,1757790775353,-428.63,0.00030136,2]
[385357116,1757790775362,-759.47,0.00030136,2]
[385357117,1757790775372,-400.0,0.00030136,2]
[385357118,1757790775382,-400.0,0.00030136,2]
[385357119,1757790775391,-620.45,0.00030136,2]
[385357120,1757790775400,-862.8,0.00030136,2]
[385357121,1757790775410,-537.7,0.00030136,2]
[385357122,1757790775420,-505.66,0.00030136,2]
[385357123,1757790775429,-407.04616149,0.00030136,2]
[385357124,1757790775440,-400.0,0.00030136,2]
[385357125,1757790775449,-427.09,0.00030136,2]
[385357126,1757790775459,-400.0,0.00030136,2]
[385357127,1757790775469,-1263.32,0.00030136,2]
[385357128,1757790775479,-400.0,0.00030136,2]
[385357129,1757790775491,-400.0,0.00030136,2]
[385357130,1757790775500,-400.0,0.00030136,2]
[385357131,1757790775510,-786.15,0.00030136,2]
[385357132,1757790775519,-4665.54,0.00030136,2]
[385357133,1757790775530,-400.0,0.00030136,2]
[385357134,1757790775540,-769.42,0.00030136,2]
[385357135,1757790775550,-958.92,0.00030136,2]
[385357136,1757790775562,-1162.64,0.00030136,2]
[385357137,1757790775571,-400.0,0.00030136,2]
[385357138,1757790775581,-400.0,0.00030136,2]
[385357139,1757790775591,-843.12,0.00030136,2]
[385357140,1757790775600,-400.0,0.00030136,2]
[385357141,1757790775610,-830.89,0.00030136,2]
[385357142,1757790775620,-400.0,0.00030136,2]
[385357143,1757790775629,-400.0,0.00030136,2]
[385357144,1757790775638,-484.74,0.00030136,2]
[385357145,1757790775648,-871.15,0.00030136,2]
[385357146,1757790775658,-400.0,0.00030136,2]
[385357147,1757790775667,-582.6,0.00030136,2]
[385357148,1757790775676,-1106.22,0.00030136,2]
[385357149,1757790775685,-1197.3,0.00030136,2]
[385357150,1757790775695,-400.0,0.00030136,2]
[385357151,1757790775705,-3316.79,0.00030136,2]
[385357152,1757790775714,-400.0,0.00030136,2]
[385357153,1757790775725,-400.0,0.00030136,2]
[385357154,1757790775735,-400.0,0.00030136,2]
[385357155,1757790775744,-1081.81,0.00030136,2]
[385357156,1757790775754,-898.38,0.00030136,2]
[385357157,1757790775763,-400.0,0.00030136,2]
[385357158,1757790775774,-744.46,0.00030136,2]
[385357159,1757790775786,-1406.57,0.00030136,2]
[385357160,1757790775796,-420.47,0.00030136,2]
[385357161,1757790775806,-2017.53,0.00030136,2]
[385357162,1757790775817,-1035.92,0.00030136,2]
[385357163,1757790775826,-400.0,0.00030136,2]
[385357164,1757790775838,-400.0,0.00030136,2]
[385357165,1757790775849,-752.16,0.00030136,2]
[385357166,1757790775859,-729.82,0.00030136,2]
[385357167,1757790775868,-843.08,0.00030136,2]
[385357168,1757790775877,-400.0,0.00030136,2]
[385357169,1757790775887,-924.42,0.00030136,2]
[385357170,1757790775897,-1791.52,0.00030136,2]
[385357171,1757790775906,-715.39,0.00030136,2]
[385357172,1757790775915,-400.0,0.00030136,2]
[385357173,1757790775924,-400.0,0.00030136,2]
[385357174,1757790775934,-905.52,0.00030136,2]
[385357175,1757790775944,-543.24,0.00030136,2]
[385357176,1757790775953,-405.71,0.00030136,2]
[385357177,1757790775963,-1125.91,0.00030136,2]
[385357178,1757790775972,-242.17831528,0.00030136,2]
[385357179,1757790775981,-405.06,0.00030136,2]
[385357180,1757790775990,-897.14,0.00030136,2]
[385357181,1757790775999,-838.71,0.00030136,2]
[385357182,1757790776008,-778.35,0.00030136,2]
[385357183,1757790776017,-1221.3,0.00030136,2]
[385357184,1757790776027,-1550.32,0.00030136,2]
[385357185,1757790776036,-1097.98,0.00030136,2]
[385357186,1757790776046,-746.12,0.00030136,2]
[385357187,1757790776055,-519.54,0.00030136,2]
[385357188,1757790776064,-400.0,0.00030136,2]
[385357189,1757790776074,-400.0,0.00030136,2]
[385357190,1757790776083,-812.08,0.00030136,2]
[385357191,1757790776092,-400.0,0.00030136,2]
[385357192,1757790776101,-1172.1,0.00030136,2]
[385357193,1757790776110,-1004.56,0.00030136,2]
[385357194,1757790776120,-406.12,0.00030136,2]
[385357195,1757790776129,-738.83,0.00030136,2]
[385357196,1757790776139,-400.0,0.00030136,2]
[385357197,1757790776148,-1445.07,0.00030136,2]
[385357198,1757790776157,-400.0,0.00030136,2]
[385357199,1757790776167,-681.1,0.00030136,2]
[385357200,1757790776176,-400.0,0.00030136,2]
[385357201,1757790776185,-400.0,0.00030136,2]
[385357202,1757790776195,-400.0,0.00030136,2]
[385357203,1757790776205,-400.0,0.00030136,2]
[385357204,1757790776215,-1822.15,0.00030136,2]
[385357205,1757790776225,-636.43,0.00030136,2]
[385357206,1757790776236,-417.32,0.00030136,2]
[385357207,1757790776246,-400.0,0.00030136,2]
[385357208,1757790776255,-1015.89,0.00030136,2]
[385357209,1757790776265,-983.53,0.00030136,2]
[385357210,1757790776275,-761.25,0.00030136,2]
[385357211,1757790776285,-722.69,0.00030136,2]
[385357212,1757790776295,-428.98511877,0.00030136,2]
[385357213,1757790776305,-670.74,0.00030136,2]
[385357214,1757790776315,-400.0,0.00030136,2]
[385357215,1757790776324,-458.09,0.00030136,2]
[385357216,1757790776334,-411.62,0.00030136,2]
[385357217,1757790776650,-589.72,0.00030136,2]
[385357218,1757790776660,-400.0,0.00030136,2]
[385357219,1757790776670,-1393.14,0.00030136,2]
[385357220,1757790776680,-422.08,0.00030136,2]
[385357221,1757790776691,-400.0,0.00030136,2]
[385357222,1757790776701,-400.0,0.00030136,2]
[385357223,1757790776711,-1286.51,0.00030136,2]
[385357224,1757790776720,-400.0,0.00030136,2]
[385357225,1757790776730,-400.0,0.00030136,2]
[385357226,1757790776740,-1836.39,0.00030136,2]
[385357227,1757790776750,-400.0,0.00030136,2]
[385357228,1757790776759,-806.89,0.00030136,2]
[385357229,1757790776769,-3209.32,0.00030136,2]
[385357230,1757790776779,-1118.88,0.00030136,2]
[385357231,1757790776790,-2346.72,0.00030136,2]
[385357232,1757790776800,-862.09,0.00030136,2]
[385357233,1757790776810,-400.0,0.00030136,2]
[385357234,1757790776819,-1033.98,0.00030136,2]
[385357235,1757790776829,-400.0,0.00030136,2]
[385357236,1757790776839,-400.0,0.00030136,2]
[385357237,1757790776849,-702.99,0.00030136,2]
[385357238,1757790776859,-1450.08,0.00030136,2]
[385357239,1757790776869,-896.46,0.00030136,2]
[385357240,1757790776878,-524.85,0.00030136,2]
[385357241,1757790776888,-837.65,0.00030136,2]
[385357242,1757790776898,-941.17,0.00030136,2]
[385357243,1757790776908,-872.8,0.00030136,2]
[385357244,1757790776918,-727.17,0.00030136,2]
[385357245,1757790776928,-711.83,0.00030136,2]
[385357246,1757790776939,-765.36,0.00030136,2]
[385357247,1757790776949,-778.2,0.00030136,2]
[385357248,1757790776959,-2033.09,0.00030136,2]
[385357249,1757790776969,-980.63,0.00030136,2]
[385357250,1757790776979,-538.72,0.00030136,2]
[385357251,1757790776988,-677.3,0.00030136,2]
[385357252,1757790776999,-1183.03,0.00030136,2]
[385357253,1757790777008,-722.19,0.00030136,2]
[385357254,1757790777018,-1015.48,0.00030136,2]
[385357255,1757790777027,-599.03,0.00030136,2]
[385357256,1757790777036,-965.24,0.00030136,2]
[385357257,1757790777045,-280.945739,0.00030136,2]
[385357258,1757790777055,-653.28,0.00030136,2]
[385357259,1757790777064,-974.74,0.00030136,2]
[385357260,1757790777073,-400.0,0.00030136,2]
[385357261,1757790777082,-532.11,0.00030136,2]
[385357262,1757790777092,-775.6,0.00030136,2]
[385357263,1757790777102,-400.0,0.00030136,2]
[385357264,1757790777112,-400.0,0.00030136,2]
[385357265,1757790777124,-1047.99,0.00030136,2]
[385357266,1757790777134,-867.54,0.00030136,2]
[385357267,1757790777144,-400.0,0.00030136,2]
[385357268,1757790777153,-741.23,0.00030136,2]
[385357269,1757790777163,-603.59,0.00030136,2]
[385357270,1757790777172,-835.84,0.00030136,2]
[385357271,1757790777182,-2266.8,0.00030136,2]
[385357272,1757790777192,-1243.58,0.00030136,2]
[385357273,1757790777202,-526.24,0.00030136,2]
[385357274,1757790777211,-605.54,0.00030136,2]
[385357275,1757790777221,-502.15,0.00030136,2]
[385357276,1757790777231,-495.47,0.00030136,2]
[385357277,1757790777240,-462.88,0.00030136,2]
[385357278,1757790777250,-858.84,0.00030136,2]
[385357279,1757790777259,-708.83,0.00030136,2]
[385357280,1757790777268,-2089.21,0.00030136,2]
[385357281,1757790777278,-1484.39,0.00030136,2]
[385357282,1757790777287,-1139.82,0.00030136,2]
[385357283,1757790777297,-676.37,0.00030136,2]
[385357284,1757790777306,-150.0,0.00030136,2]
[385357285,1757790777316,-920.38,0.00030136,2]
[385357286,1757790777325,-785.36,0.00030136,2]
[385357287,1757790777334,-400.0,0.00030136,2]
[385357288,1757790777344,-1042.18,0.00030136,2]
[385357289,1757790777354,-400.0,0.00030136,2]
[385357290,1757790777363,-359.37720112,0.00030136,2]
[385357291,1757790777373,-275.81882346,0.00030136,2]
[385357292,1757790777382,-714.23,0.00030136,2]
[385357293,1757790777391,-857.85,0.00030136,2]
[385357294,1757790777400,-894.39,0.00030136,2]
[385357295,1757790777410,-647.42,0.00030136,2]
[385357296,1757790777419,-513.3,0.00030136,2]
[385357297,1757790777429,-2338.03,0.00030136,2]
[385357298,1757790777439,-924.41,0.00030136,2]
[385357299,1757790777448,-1469.88,0.00030136,2]
[385357300,1757790777458,-841.74,0.00030136,2]
[385357301,1757790777468,-722.3,0.00030136,2]
[385357302,1757790777477,-415.27,0.00030136,2]
[385357303,1757790777492,-767.19,0.00030136,2]
[385357304,1757790777502,-814.0,0.00030136,2]
[385357305,1757790777512,-1229.51,0.00030136,2]
[385357306,1757790777523,-168.7309538,0.00030136,2]
[385357307,1757790777533,-844.21,0.00030136,2]
[385357308,1757790777543,-1485.88,0.00030136,2]
[385357309,1757790777553,-400.0,0.00030136,2]
[385357310,1757790777563,-449.16,0.00030136,2]
[385357311,1757790777572,-2265.68,0.00030136,2]
[385357312,1757790777582,-865.66,0.00030136,2]
[385357313,1757790777591,-863.57,0.00030136,2]
[385357314,1757790777601,-572.0,0.00030136,2]
[385357315,1757790777610,-2112.49,0.00030136,2]
[385357316,1757790777619,-1107.28,0.00030136,2]
[385357317,1757790777628,-510.21,0.00030136,2]
[385357318,1757790777638,-400.0,0.00030136,2]
[385357319,1757790777647,-1170.47,0.00030136,2]
[385357320,1757790777656,-841.3,0.00030136,2]
[385357321,1757790777666,-1028.51,0.00030136,2]
[385357322,1757790777675,-856.96,0.00030136,2]
[385357323,1757790777685,-400.0,0.00030136,2]
[385357324,1757790777696,-906.61,0.00030136,2]
[385357325,1757790777706,-1458.58,0.00030136,2]
[385357326,1757790777715,-701.85,0.00030136,2]
[385357327,1757790777724,-4256.1,0.00030136,2]
[385357328,1757790777734,-1006.96,0.00030136,2]
[385357329,1757790777743,-728.15,0.00030136,2]
[385357330,1757790777753,-400.0,0.00030136,2]
[385357331,1757790777763,-925.96,0.00030136,2]
[385357332,1757790777772,-400.0,0.00030136,2]
[385357333,1757790777781,-445.69,0.00030136,2]
[385357334,1757790777790,-1198.57,0.00030136,2]
[385357335,1757790777799,-1974.67,0.00030136,2]
[385357336,1757790777809,-2857.69,0.00030136,2]
[385357337,1757790777819,-158.0438149,0.00030136,2]
[385357338,1757790777829,-847.13,0.00030136,2]
[385357339,1757790777839,-400.0,0.00030136,2]
[385357340,1757790777848,-2990.98,0.00030136,2]
[385357341,1757790777858,-400.0,0.00030136,2]
[385357342,1757790777868,-834.58,0.00030136,2]
[385357343,1757790777877,-2302.98,0.00030136,2]
[385357344,1757790777887,-400.0,0.00030136,2]
[385357345,1757790777896,-2111.33,0.00030136,2]
[385357346,1757790777906,-1747.56,0.00030136,2]
[385357347,1757790777915,-466.82,0.00030136,2]
[385357348,1757790777926,-400.0,0.00030136,2]
[385357349,1757790777935,-2233.25,0.00030136,2]
[385357350,1757790777949,-1255.2,0.00030136,2]
[385357351,1757790777959,-400.0,0.00030136,2]
[385357352,1757790777969,-694.91,0.00030136,2]
[385357353,1757790777979,-1963.87,0.00030136,2]
[385357354,1757790777988,-1143.85,0.00030136,2]
[385357355,1757790777998,-158.86493043,0.00030136,2]
[385357356,1757790778009,-400.0,0.00030136,2]
[385357357,1757790778018,-400.0,0.00030136,2]
[385357358,1757790778027,-807.66,0.00030136,2]
[385357359,1757790778037,-2263.39,0.00030136,2]
[385357360,1757790778046,-400.0,0.00030136,2]
[385357361,1757790778056,-927.88,0.00030136,2]
[385357362,1757790778065,-952.59,0.00030136,2]
[385357363,1757790778075,-931.48,0.00030136,2]
[385357364,1757790778084,-400.0,0.00030136,2]
[385357365,1757790778093,-669.04,0.00030136,2]
[385357366,1757790778103,-1333.33,0.00030136,2]
[385357367,1757790778112,-944.31,0.00030136,2]
[385357368,1757790778121,-400.0,0.00030136,2]
[385357369,1757790778131,-711.99,0.00030136,2]
[385357370,1757790778140,-1798.63,0.00030136,2]
[385357371,1757790778150,-1030.24,0.00030136,2]
[385357372,1757790778160,-568.52,0.00030136,2]
[385357373,1757790778169,-977.53,0.00030136,2]
[385357374,1757790778179,-1079.08,0.00030136,2]
[385357375,1757790778188,-400.0,0.00030136,2]
[385357376,1757790778199,-923.82,0.00030136,2]
[385357377,1757790778208,-1374.51,0.00030136,2]
[385357378,1757790778218,-400.0,0.00030136,2]
[385357379,1757790778227,-707.41,0.00030136,2]
[385357380,1757790778236,-539.76,0.00030136,2]
[385357381,1757790778246,-532.15,0.00030136,2]
[385357382,1757790778256,-1021.66,0.00030136,2]
[385357383,1757790778265,-796.82,0.00030136,2]
[385357384,1757790778275,-786.29,0.00030136,2]
[385357385,1757790778286,-1683.27,0.00030136,2]
[385357386,1757790778295,-214.21178829,0.00030136,2]
[385357387,1757790778305,-923.85,0.00030136,2]
[385357388,1757790778314,-585.84,0.00030136,2]